bitfinex-derivatives/quotes_BTCF0:USTF0_20250907
["timestamp","ask_amount","ask_price","bid_price","bid_amount"]
[1757266069496,0.002,111060.0,111050.0,0.45634552]
[1757266069690,0.002,111060.0,111050.0,0.3753504]
[1757266069892,0.002,111060.0,111050.0,0.85736848]
[1757266070090,0.002,111060.0,111050.0,0.88736848]
[1757266070494,0.02256,111070.0,111060.0,0.03489]
[1757266070695,0.02256,111070.0,111060.0,0.1249223]
[1757266070894,0.02256,111070.0,111060.0,0.7449223]
[1757266071092,0.33470484,111080.0,111070.0,0.03489]
[1757266071304,0.33470484,111080.0,111070.0,0.11586055]
[1757266076107,0.33770484,111080.0,111070.0,0.11586055]
[1757266076700,0.02422484,111080.0,111070.0,0.11586055]
[1757266077809,0.02622484,111080.0,111070.0,0.11586055]
[1757266080406,0.27622484,111080.0,111070.0,0.08097055]
[1757266081307,0.27622484,111080.0,111060.0,0.12706904]
[1757266081508,0.84841,111070.0,111060.0,0.14834904]
[1757266081805,0.84841,111070.0,111060.0,0.14824904]
[1757266081998,0.84841,111070.0,111060.0,0.03489]
[1757266083211,0.84841,111070.0,111060.0,0.14814871]
[1757266083596,0.85041,111070.0,111060.0,0.14814871]
[1757266084803,0.85141,111070.0,111060.0,0.14814871]
[1757266090609,0.85257993,111070.0,111060.0,0.14814871]
[1757266090812,0.85264758,111070.0,111060.0,0.14814871]
[1757266092211,0.02532758,111070.0,111060.0,0.14814871]
[1757266093402,0.02532758,111070.0,111060.0,0.03489]
[1757266103426,0.02532758,111070.0,111060.0,0.14835932]
[1757266113634,0.02532758,111070.0,111060.0,0.03489]
[1757266115940,0.02532758,111070.0,111060.0,0.19690808]
[1757266116737,0.02532758,111070.0,111060.0,0.03489]
[1757266124847,0.02532758,111070.0,111060.0,0.19690808]
[1757266126450,0.02532758,111070.0,111060.0,0.03489]
[1757266133654,0.02532758,111070.0,111060.0,0.19690808]
[1757266136854,0.02532758,111070.0,111060.0,0.03489]
[1757266150669,0.22402959,111070.0,111060.0,0.03489]
[1757266151264,0.02532758,111070.0,111060.0,0.03489]
[1757266151469,0.22402959,111070.0,111060.0,0.03489]
[1757266159077,0.02532758,111070.0,111060.0,0.03489]
[1757266159278,0.22402959,111070.0,111060.0,0.03489]
[1757266159571,1.0195416,111070.0,111060.0,0.07858364]
[1757266160079,1.0195416,111070.0,111050.0,0.24320262]
[1757266160279,0.42005402,111060.0,111050.0,0.0001]
[1757266160478,0.42005402,111060.0,111040.0,0.09418454]
[1757266160777,1.04822959,111050.0,111040.0,0.11525454]
[1757266160981,1.12165929,111050.0,111040.0,0.11515454]
[1757266161179,1.12165929,111050.0,111040.0,0.03407]
[1757266162481,1.13084332,111050.0,111040.0,0.03407]
[1757266163178,1.13084332,111050.0,111040.0,0.03507]
[1757266164884,1.13184332,111050.0,111040.0,0.03407]
[1757266166285,1.13195123,111050.0,111040.0,0.03407]
[1757266167589,1.13195123,111050.0,111040.0,0.14731397]
[1757266168985,1.13395123,111050.0,111040.0,0.14731397]
[1757266172786,1.13395123,111050.0,111040.0,0.03407]
[1757266172991,1.13395123,111050.0,111040.0,0.11493289]
[1757266182795,1.13395123,111050.0,111040.0,0.03407]
[1757266183496,1.13395123,111050.0,111040.0,0.22820167]
[1757266183691,1.13395123,111050.0,111040.0,0.1149577]
[1757266186298,1.13395123,111050.0,111040.0,0.03407]
[1757266187699,1.13395123,111050.0,111040.0,0.14731397]
[1757266193502,1.13395123,111050.0,111040.0,0.11510982]
[1757266200609,0.00681,111040.0,111030.0,0.09288397]
[1757266200804,0.2280475,111040.0,111030.0,0.09288397]
[1757266201004,0.2280475,111040.0,111030.0,0.09738397]
[1757266201405,0.2280475,111040.0,111030.0,0.0045]
[1757266203204,0.2290475,111040.0,111030.0,0.0045]
[1757266204811,0.9489275,111040.0,111030.0,0.0045]
[1757266206011,1.14773742,111040.0,111030.0,0.0045]
[1757266208809,0.9489275,111040.0,111030.0,0.11793716]
[1757266209009,0.9489275,111040.0,111030.0,0.14049716]
[1757266209609,0.9489275,111040.0,111030.0,0.11793716]
[1757266211515,0.9489275,111040.0,111030.0,0.14049716]
[1757266212015,0.9489275,111040.0,111030.0,0.11793716]
[1757266212610,1.1989275,111040.0,111030.0,0.11793716]
[1757266212912,1.39773742,111040.0,111030.0,0.11793716]
[1757266213111,1.51267029,111040.0,111030.0,0.11793716]
[1757266215215,1.51267029,111040.0,111030.0,0.0045]
[1757266223321,1.51267029,111040.0,111030.0,1e-08]
[1757266223524,0.00681,111030.0,111020.0,0.0001]
[1757266223724,0.02994,111020.0,111010.0,0.11389747]
[1757266223917,0.2299875,111020.0,111010.0,0.11379747]
[1757266224216,1.0545875,111020.0,111010.0,0.13635747]
[1757266224424,1.0477775,111020.0,111010.0,0.14933747]
[1757266225223,0.2231775,111020.0,111010.0,0.14933747]
[1757266225437,1.0477775,111020.0,111010.0,0.14933747]
[1757266226019,1.0477775,111020.0,111010.0,0.15133747]
[1757266226418,1.24681702,111020.0,111010.0,0.15333747]
[1757266227122,1.25362702,111020.0,111010.0,0.14035747]
[1757266227721,1.24681702,111020.0,111010.0,0.15333747]
[1757266228423,1.24681702,111020.0,111010.0,0.60226219]
[1757266228424,0.00123758,111020.0,111010.0,0.60226219]
[1757266230127,0.00123758,111020.0,111010.0,0.40333747]
[1757266230324,0.00123758,111020.0,111010.0,0.60226219]
[1757266230926,0.42221702,111020.0,111010.0,0.15333747]
[1757266234530,0.42902702,111020.0,111010.0,0.11779747]
[1757266234725,0.42902702,111020.0,111000.0,0.17561808]
[1757266234726,0.01393,110990.0,110970.0,0.01415044]
[1757266235029,1.25992702,110980.0,110970.0,0.03523044]
[1757266235226,1.26879496,110980.0,110970.0,0.03523044]
[1757266235824,1.26879496,110980.0,110970.0,0.04623044]
[1757266236230,1.34075748,110980.0,110970.0,0.04623044]
[1757266236822,1.34075748,110980.0,110970.0,0.03723044]
[1757266237021,1.34075748,110980.0,110970.0,0.05023044]
[1757266237729,1.34075748,110980.0,110970.0,0.03823044]
[1757266241129,1.34075748,110980.0,110970.0,0.02444044]
[1757266241336,1.34075748,110980.0,110970.0,0.00336044]
[1757266241531,1.7896822,110980.0,110970.0,0.00336044]
[1757266241735,1.59075748,110980.0,110970.0,0.00336044]
[1757266242435,0.76631748,110980.0,110970.0,0.00336044]
[1757266242636,0.76631748,110980.0,110970.0,0.00136044]
[1757266242831,1.59075748,110980.0,110970.0,0.00136044]
[1757266243538,0.76631748,110980.0,110970.0,0.00136044]
[1757266243739,0.76631748,110980.0,110970.0,0.02244044]
[1757266243938,1.59075748,110980.0,110970.0,0.02244044]
[1757266245034,1.59175748,110980.0,110970.0,0.02144044]
[1757266246340,0.76731748,110980.0,110970.0,0.02144044]
[1757266246537,1.59179748,110980.0,110970.0,0.02144044]
[1757266247142,1.19394804,110980.0,110970.0,0.02144044]
[1757266247346,1.59179748,110980.0,110970.0,0.02144044]
[1757266247946,1.94179748,110980.0,110970.0,0.02144044]
[1757266248349,0.46946804,110980.0,110970.0,0.02144044]
[1757266248646,1.34179748,110980.0,110970.0,0.02144044]
[1757266248848,1.3414371,110980.0,110970.0,0.02144044]
[1757266251648,0.5169571,110980.0,110970.0,0.02144044]
[1757266251844,1.3413971,110980.0,110970.0,0.02144044]
[1757266252043,1.6613971,110980.0,110970.0,0.02144044]
[1757266253150,1.6613971,110980.0,110970.0,0.03523044]
[1757266253948,1.6613971,110980.0,110970.0,0.02144044]
[1757266256556,0.8369571,110980.0,110970.0,0.02144044]
[1757266256856,1.6913971,110980.0,110970.0,0.02144044]
[1757266260154,0.8669571,110980.0,110970.0,0.02144044]
[1757266260355,0.92953766,110980.0,110970.0,0.48415516]
[1757266260658,0.30410238,110980.0,110970.0,0.48415516]
[1757266260957,1.12846238,110980.0,110970.0,0.48415516]
[1757266261155,0.92953766,110980.0,110970.0,0.48415516]
[1757266261355,1.12846238,110980.0,110970.0,0.48415516]
[1757266263156,0.30410238,110980.0,110970.0,0.48415516]
[1757266263363,1.12846238,110980.0,110970.0,0.48415516]
[1757266264064,0.30410238,110980.0,110970.0,0.48415516]
[1757266264364,1.12842238,110980.0,110970.0,0.48415516]
[1757266264658,0.90734804,110980.0,110970.0,0.86415516]
[1757266264862,0.90734804,110980.0,110970.0,0.82415516]
[1757266265061,0.90734804,110980.0,110970.0,0.83415516]
[1757266265265,0.08306804,110980.0,110970.0,0.83415516]
[1757266268167,0.08306804,110980.0,110970.0,0.41523044]
[1757266268367,0.08306804,110980.0,110970.0,0.61415516]
[1757266269165,0.10594804,110980.0,110970.0,0.61415516]
[1757266270471,0.10594804,110980.0,110970.0,0.48415516]
[1757266272868,0.08306804,110980.0,110970.0,0.48415516]
[1757266274674,0.0742001,110980.0,110970.0,0.68307988]
[1757266274865,0.0742001,110980.0,110970.0,0.48415516]
[1757266275066,0.0742001,110980.0,110970.0,0.50415516]
[1757266275372,0.0742001,110980.0,110970.0,1.02307988]
[1757266275566,0.0742001,110980.0,110970.0,1.14636904]
[1757266276070,0.0742001,110980.0,110970.0,0.94744432]
[1757266276376,0.0742001,110980.0,110970.0,1.23647494]
[1757266276672,0.0742001,110980.0,110970.0,1.23747494]
[1757266277065,0.0732001,110980.0,110970.0,1.23847494]
[1757266277268,0.00123758,110980.0,110970.0,1.23847494]
[1757266277464,0.00123758,110980.0,110970.0,1.02847494]
[1757266277774,0.00123758,110980.0,110970.0,1.14518578]
[1757266278672,0.00123758,110980.0,110970.0,1.96918578]
[1757266281376,0.00123758,110980.0,110970.0,2.08243746]
[1757266282675,0.00123758,110980.0,110970.0,1.96918578]
[1757266283384,0.00123758,110980.0,110970.0,2.08244071]
[1757266284278,0.08115494,110990.0,110980.0,0.03518]
[1757266284279,0.07210738,110990.0,110980.0,0.03518]
[1757266284477,0.19892472,111000.0,110980.0,0.43302944]
[1757266284774,0.27180472,111000.0,110990.0,0.23410472]
[1757266285179,0.02288,111000.0,110990.0,0.23410472]
[1757266286379,0.02288,111000.0,110990.0,0.23410732]
[1757266286677,0.02488,111000.0,110990.0,0.23410732]
[1757266287268,0.03393229,111000.0,110990.0,0.23410732]
[1757266287568,0.03193229,111000.0,110990.0,0.23410732]
[1757266287769,0.03393229,111000.0,110990.0,0.23410732]
[1757266289177,0.10576656,111000.0,110990.0,0.23410732]
[1757266290677,0.10576656,111000.0,110990.0,0.32419692]
[1757266291181,0.08288656,111000.0,110990.0,0.23410732]
[1757266292175,0.07383427,111000.0,110990.0,0.23410732]
[1757266294082,0.07383427,111000.0,110990.0,0.32419702]
[1757266294671,0.07383427,111000.0,110990.0,0.43745195]
[1757266295782,0.07383427,111000.0,110990.0,0.34736225]
[1757266298384,0.09566427,111000.0,110990.0,0.34736225]
[1757266298778,0.07383427,111000.0,110990.0,0.34736225]
[1757266299077,0.09566427,111000.0,110990.0,0.34736225]
[1757266301284,0.09566427,111000.0,110990.0,0.14843493]
[1757266301787,0.09566427,111000.0,110990.0,0.34736225]
[1757266304488,0.09566427,111000.0,110990.0,0.23410732]
[1757266306285,0.09566427,111000.0,110990.0,0.34755046]
[1757266313198,0.09566427,111000.0,110990.0,0.23410732]
[1757266313796,0.09566427,111000.0,110990.0,0.3956644]
[1757266321004,0.09566427,111000.0,110990.0,0.485754]
[1757266321702,0.07383427,111000.0,110990.0,0.32419692]
[1757266324305,0.09566427,111000.0,110990.0,0.32419692]
[1757266325098,0.07383427,111000.0,110990.0,0.32419692]
[1757266327309,0.07383427,111000.0,110990.0,1.14719692]
[1757266327507,0.07383427,111000.0,110990.0,0.9482696]
[1757266327805,0.07383427,111000.0,110990.0,1.14719692]
[1757266331310,0.07383427,111000.0,110990.0,1.1651565]
[1757266332213,0.07383427,111000.0,110990.0,1.27872938]
[1757266332422,0.07383427,111000.0,110990.0,1.29872938]
[1757266332612,0.07383427,111000.0,110990.0,1.09980206]
[1757266332813,0.07383427,111000.0,110990.0,1.29872938]
[1757266333419,0.07383427,111000.0,110990.0,1.1851565]
[1757266335910,0.07383427,111000.0,110990.0,1.29872938]
[1757266336723,0.07383427,111000.0,110990.0,1.1851565]
[1757266337319,0.07383427,111000.0,110990.0,1.5451565]
[1757266337511,0.05030487,111000.0,110990.0,1.99408382]
[1757266337717,0.00912292,111010.0,111000.0,0.1240416]
[1757266337925,0.00912292,111010.0,111000.0,0.43651466]
[1757266339012,0.01012292,111010.0,111000.0,0.43651466]
[1757266339211,0.01212292,111010.0,111000.0,0.43651466]
[1757266339417,0.01212292,111010.0,111000.0,0.45651466]
[1757266339614,0.00313484,111010.0,111000.0,0.63544198]
[1757266339818,0.00313484,111010.0,111000.0,0.96544198]
[1757266340315,0.00313484,111010.0,111000.0,0.63544198]
[1757266340716,0.07445107,111010.0,111000.0,0.65544198]
[1757266343828,0.07345107,111010.0,111000.0,0.65644198]
[1757266345030,0.07345107,111010.0,111000.0,0.54289624]
[1757266346333,0.07345107,111010.0,111000.0,0.54272338]
[1757266346831,0.07145107,111010.0,111000.0,0.54472338]
[1757266347434,0.07145107,111010.0,111000.0,0.52472338]
[1757266347724,0.07145107,111010.0,111000.0,0.54472338]
[1757266351534,0.07145107,111010.0,111000.0,0.52472338]
[1757266351732,0.07145107,111010.0,111000.0,0.90472338]
[1757266352328,0.07145107,111010.0,111000.0,1.06628046]
[1757266359140,0.07145107,111010.0,111000.0,1.88904046]
[1757266361344,0.07145107,111010.0,111000.0,0.68628046]
[1757266361545,0.07145107,111010.0,111000.0,1.56904046]
[1757266362541,0.07145107,111010.0,111000.0,0.94512135]
[1757266362733,0.07145107,111010.0,111000.0,1.56900046]
[1757266362933,0.07145107,111010.0,111000.0,0.34859868]
[1757266362934,0.01626296,111010.0,111000.0,0.34859868]
[1757266363143,0.03102223,111020.0,111010.0,0.03405]
[1757266363442,0.03102223,111020.0,111010.0,0.25127108]
[1757266364942,0.03102223,111020.0,111010.0,1.07419108]
[1757266365345,0.10217354,111020.0,111010.0,1.07415108]
[1757266366051,0.10217354,111020.0,111010.0,1.07411108]
[1757266366349,0.10217354,111020.0,111010.0,1.18752309]
[1757266369249,0.10217354,111020.0,111010.0,1.38636398]
[1757266369849,0.07164131,111020.0,111010.0,1.47643758]
[1757266370050,0.00023758,111020.0,111010.0,1.95302557]
[1757266370850,0.00023758,111020.0,111010.0,2.11458265]
[1757266371752,0.03086555,111040.0,111030.0,0.03405]
[1757266371946,0.03086555,111040.0,111030.0,1.18729246]
[1757266372147,0.03086555,111040.0,111030.0,0.36413246]
[1757266373046,0.03186555,111040.0,111030.0,0.36413246]
[1757266373451,0.03186555,111040.0,111030.0,0.25076716]
[1757266373754,0.10501116,111040.0,111030.0,0.25076716]
[1757266374052,0.03386555,111040.0,111030.0,0.25076716]
[1757266374454,0.01257555,111040.0,111030.0,0.44960805]
[1757266374954,0.01257555,111040.0,111030.0,0.05192627]
[1757266375153,0.01257555,111040.0,111030.0,0.25076716]
[1757266377255,0.03386555,111040.0,111030.0,0.05192627]
[1757266377458,0.01257555,111040.0,111030.0,0.25076716]
[1757266378458,0.08288551,111040.0,111030.0,0.25076716]
[1757266379354,0.10417551,111040.0,111030.0,0.25076716]
[1757266383059,0.10417551,111040.0,111030.0,0.25027716]
[1757266383450,0.08288551,111040.0,111030.0,0.25027716]
[1757266383655,0.08288551,111040.0,111030.0,0.36364246]
[1757266384364,0.10482551,111040.0,111030.0,0.36364246]
[1757266393970,0.10482551,111040.0,111030.0,0.36315246]
[1757266394570,0.10482551,111040.0,111030.0,0.56199335]
[1757266394765,0.10482551,111040.0,111030.0,0.36315246]
[1757266396472,0.10482551,111040.0,111030.0,0.24978716]
[1757266400073,0.10482551,111040.0,111030.0,0.44862805]
[1757266401774,0.10482551,111040.0,111030.0,0.24978716]
[1757266402074,0.08288551,111040.0,111030.0,0.24978716]
[1757266402472,0.10482551,111040.0,111030.0,0.24978716]
[1757266404673,0.10482551,111040.0,111030.0,0.36332214]
[1757266406079,0.10482551,111040.0,111030.0,0.24978716]
[1757266406375,0.10482551,111040.0,111030.0,0.36332202]
[1757266408275,0.10482551,111040.0,111030.0,0.36325078]
[1757266415273,0.10482551,111040.0,111030.0,0.24971592]
[1757266421290,0.10482551,111040.0,111030.0,0.36325245]
[1757266423783,0.10482551,111040.0,111030.0,0.24971592]
[1757266425378,0.10482551,111040.0,111030.0,0.05094627]
[1757266425584,0.10482551,111040.0,111030.0,0.24971592]
[1757266428286,0.10482551,111040.0,111030.0,0.36325245]
[1757266429687,0.10382551,111040.0,111030.0,0.36325245]
[1757266431385,0.10282551,111040.0,111030.0,0.24971592]
[1757266432383,0.10182551,111040.0,111030.0,0.24971592]
[1757266433488,0.10182551,111040.0,111030.0,0.1644828]
[1757266433685,0.10182551,111040.0,111030.0,0.36325245]
[1757266436084,0.07988551,111040.0,111030.0,0.36325245]
[1757266436490,0.10228551,111040.0,111030.0,0.5620221]
[1757266436892,0.07988551,111040.0,111030.0,0.5620221]
[1757266437494,0.07988551,111040.0,111030.0,0.44848557]
[1757266438487,0.00049,111040.0,111030.0,0.53854247]
[1757266438795,0.00049,111040.0,111030.0,0.78854247]
[1757266439389,0.00010267,111040.0,111030.0,1.14854247]
[1757266439700,0.00049,111050.0,111030.0,1.24761224]
[1757266439892,0.00049,111050.0,111040.0,1.30857052]
[1757266440900,0.07366052,111050.0,111040.0,1.30857052]
[1757266442903,0.00149,111050.0,111040.0,1.30857052]
[1757266443106,0.00149,111050.0,111040.0,1.42191336]
[1757266443808,0.00149,111050.0,111040.0,1.25987129]
[1757266445905,0.00149,111050.0,111040.0,1.14652845]
[1757266446911,0.00149,111050.0,111040.0,1.16652845]
[1757266448312,0.00149,111050.0,111040.0,1.14652845]
[1757266448911,0.00149,111050.0,111040.0,0.32424845]
[1757266449112,0.001,111050.0,111040.0,1.14632845]
[1757266449612,0.001,111050.0,111040.0,1.16632845]
[1757266451114,0.001,111050.0,111040.0,0.9675588]
[1757266451309,0.001,111050.0,111040.0,1.16632845]
[1757266457516,0.001,111050.0,111040.0,1.32837052]
[1757266461620,0.001,111050.0,111040.0,1.16632845]
[1757266462423,0.001,111050.0,111040.0,1.32837052]
[1757266464118,0.001,111050.0,111040.0,1.16632845]
[1757266467425,0.001,111050.0,111040.0,1.46632845]
[1757266467625,0.00049,111060.0,111050.0,0.1030309]
[1757266467829,0.00049,111060.0,111050.0,0.71322807]
[1757266468128,0.00049,111060.0,111050.0,0.59986743]
[1757266468328,0.00049,111060.0,111050.0,0.59961327]
[1757266469130,0.00249,111060.0,111050.0,0.59961327]
[1757266469928,0.00249,111060.0,111050.0,1.04165534]
[1757266470328,0.00349,111060.0,111050.0,1.04165534]
[1757266473529,0.00068124,111060.0,111050.0,1.04165534]
[1757266474530,0.00068124,111060.0,111050.0,0.87961327]
[1757266478937,0.00068124,111060.0,111050.0,1.07825584]
[1757266479133,0.00068124,111060.0,111050.0,0.87961327]
[1757266479333,0.00068124,111060.0,111050.0,0.88361327]
[1757266479535,0.00068124,111060.0,111050.0,1.08225584]
[1757266481437,0.07073794,111070.0,111060.0,0.03582]
[1757266481638,0.0796127,111070.0,111060.0,1.566745]
[1757266481836,0.00936476,111070.0,111060.0,1.566745]
[1757266482034,0.00049,111070.0,111060.0,1.566745]
[1757266482340,0.00049,111070.0,111060.0,1.6567781]
[1757266482638,0.00049,111070.0,111060.0,1.6597781]
[1757266483838,0.07210617,111070.0,111060.0,1.6597781]
[1757266484037,0.00049,111070.0,111060.0,1.46113553]
[1757266484439,0.00049,111070.0,111060.0,1.34977824]
[1757266485040,0.00948842,111070.0,111060.0,1.34977824]
[1757266485242,0.00948842,111070.0,111060.0,1.25970514]
[1757266485442,0.00948842,111070.0,111060.0,1.4216676]
[1757266486443,0.00948842,111070.0,111060.0,0.6000676]
[1757266486745,0.00948842,111070.0,111060.0,1.4216676]
[1757266486941,0.00948842,111070.0,111060.0,1.25970514]
[1757266487445,0.00948842,111070.0,111060.0,0.86242]
[1757266487639,0.00948842,111070.0,111060.0,1.25970514]
[1757266487839,0.08190392,111070.0,111060.0,1.25970514]
[1757266493548,0.08190392,111070.0,111060.0,1.45834771]
[1757266498640,0.08190392,111070.0,111060.0,1.54838061]
[1757266500252,0.0729055,111070.0,111060.0,1.54838061]
[1757266500851,0.08200502,111070.0,111060.0,1.54838061]
[1757266501054,0.0729055,111070.0,111060.0,1.54838061]
[1757266501754,0.0729055,111070.0,111060.0,1.71034307]
[1757266501954,0.0729055,111070.0,111060.0,1.5117005]
[1757266503054,0.08176131,111070.0,111060.0,1.5117005]
[1757266503254,0.0729055,111070.0,111060.0,1.6317005]
[1757266503957,0.0729055,111070.0,111060.0,1.83034307]
[1757266505962,0.08212146,111070.0,111060.0,1.83034307]
[1757266506157,0.08163146,111070.0,111060.0,1.83034307]
[1757266506358,0.00049,111080.0,111060.0,1.83034307]
[1757266506570,0.02294,111080.0,111070.0,0.43300514]
[1757266508765,0.02294,111080.0,111070.0,0.5949676]
[1757266509067,0.02294,111080.0,111070.0,0.5969676]
[1757266510271,0.02294,111080.0,111070.0,0.6869926]
[1757266510562,0.0094126,111080.0,111070.0,0.54349078]
[1757266510767,0.08297383,111080.0,111070.0,0.56349078]
[1757266510964,0.00049,111080.0,111070.0,0.67696731]
[1757266512472,0.00049,111080.0,111070.0,0.65696731]
[1757266512770,0.00049,111080.0,111070.0,0.59349078]
[1757266512970,0.00049,111080.0,111070.0,0.76545324]
[1757266513167,0.00049,111080.0,111070.0,1.08545324]
[1757266513365,0.00049,111080.0,111070.0,0.76545324]
[1757266513871,0.00049,111080.0,111070.0,0.60349078]
[1757266514071,0.00049,111080.0,111070.0,0.54349078]
[1757266514273,0.00049,111080.0,111070.0,0.7168747]
[1757266514969,0.00049,111080.0,111070.0,1.4781147]
[1757266515166,0.00049,111080.0,111070.0,1.8381147]
[1757266519674,0.00049,111080.0,111070.0,1.0168747]
[1757266519867,0.00049,111080.0,111070.0,1.6679947]
[1757266520375,0.00049,111080.0,111070.0,1.55461078]
[1757266522077,0.00049,111080.0,111070.0,1.46458578]
[1757266523671,0.00049,111080.0,111070.0,0.64346578]
[1757266524180,0.00049,111080.0,111070.0,1.62650824]
[1757266524983,0.00049,111080.0,111070.0,1.71653294]
[1757266530282,0.00049,111080.0,111070.0,1.51782701]
[1757266530584,9.587e-05,111080.0,111070.0,1.51782701]
[1757266530780,0.02254587,111080.0,111070.0,0.60672231]
[1757266531079,0.23392508,111080.0,111070.0,0.3952931]
[1757266531280,0.28534587,111080.0,111070.0,0.3952931]
[1757266531487,0.28534587,111080.0,111070.0,0.23333064]
[1757266532080,0.28534587,111080.0,111070.0,0.43190985]
[1757266532384,0.28534587,111080.0,111070.0,0.42990985]
[1757266532385,0.28634587,111080.0,111070.0,0.42990985]
[1757266533180,0.28734587,111080.0,111070.0,0.42990985]
[1757266533989,0.28734587,111080.0,111070.0,0.59187231]
[1757266534181,0.28734587,111080.0,111070.0,0.40187231]
[1757266534788,0.28734587,111080.0,111070.0,0.23990985]
[1757266537390,0.28734587,111080.0,111070.0,0.04133064]
[1757266537589,0.28634587,111080.0,111070.0,0.23990985]
[1757266538191,0.28534587,111080.0,111070.0,0.23990985]
[1757266539294,0.03534587,111080.0,111070.0,0.35324975]
[1757266541793,0.03534587,111080.0,111070.0,0.15467054]
[1757266541992,0.03534587,111080.0,111070.0,0.35324975]
[1757266545392,0.03534587,111080.0,111070.0,0.23990985]
[1757266545894,0.03534587,111080.0,111070.0,0.353241]
[1757266548994,0.03534587,111080.0,111070.0,0.23990985]
[1757266553503,0.03534587,111080.0,111070.0,0.35326091]
[1757266558605,0.03534587,111080.0,111070.0,0.1546817]
[1757266559103,0.03534587,111080.0,111070.0,0.35326091]
[1757266562412,0.03534587,111080.0,111070.0,0.1546817]
[1757266562600,0.03534587,111080.0,111070.0,0.35326091]
[1757266563708,0.03534587,111080.0,111070.0,0.23990985]
[1757266569611,0.03534587,111080.0,111070.0,0.41532231]
[1757266590429,0.23400154,111080.0,111070.0,0.25343631]
[1757266590728,0.03534587,111080.0,111070.0,0.25343631]
[1757266600239,0.03534587,111080.0,111070.0,0.41539877]
[1757266601741,0.03534587,111080.0,111070.0,0.25343631]
[1757266603446,0.03534587,111080.0,111070.0,0.41539877]
[1757266604146,0.03534587,111080.0,111070.0,0.25343631]
[1757266608149,0.02254587,111080.0,111070.0,0.25343631]
[1757266613548,0.0044275,111080.0,111070.0,0.25343631]
[1757266614053,0.0044275,111080.0,111070.0,0.41539877]
[1757266617353,0.0044275,111080.0,111070.0,0.2167431]
[1757266617553,0.0044275,111080.0,111070.0,0.41539877]
[1757266618554,0.0044275,111080.0,111070.0,0.56539877]
[1757266623458,0.0044275,111080.0,111070.0,0.41539877]
[1757266627560,0.10132751,111090.0,111080.0,0.01353]
[1757266627751,0.10132751,111090.0,111080.0,0.43273134]
[1757266628857,0.10232751,111090.0,111080.0,0.43273134]
[1757266630170,0.10132751,111090.0,111080.0,0.43273134]
[1757266631372,0.10232751,111090.0,111080.0,0.43273134]
[1757266632366,0.10132751,111090.0,111080.0,0.43273134]
[1757266632568,0.29998318,111090.0,111080.0,0.43273134]
[1757266636473,0.10132751,111090.0,111080.0,0.43273134]
[1757266643477,0.10132751,111090.0,111080.0,0.54620799]
[1757266652383,0.10132751,111090.0,111080.0,0.34750983]
[1757266655886,0.10132751,111090.0,111080.0,0.23403318]
[1757266693507,0.10132751,111090.0,111080.0,0.34753244]
[1757266698114,0.08025751,111090.0,111080.0,0.88616252]
[1757266698312,0.08025751,111090.0,111080.0,0.68264636]
[1757266698513,0.08025751,111090.0,111080.0,0.79608181]
[1757266698713,0.08025751,111090.0,111080.0,0.59746863]
[1757266698915,0.08025751,111090.0,111080.0,0.48403318]
[1757266699716,0.08025751,111090.0,111080.0,0.59741566]
[1757266700117,0.08025751,111090.0,111080.0,0.59941566]
[1757266700512,0.08025751,111090.0,111080.0,0.48603318]
[1757266701122,0.08025751,111090.0,111080.0,0.79800123]
[1757266701524,0.08025751,111090.0,111080.0,0.68464636]
[1757266702114,0.00049,111090.0,111080.0,1.61342296]
[1757266702326,0.00049,111100.0,111090.0,0.01287]
[1757266702523,0.00049,111100.0,111090.0,0.44983699]
[1757266704125,0.00049,111100.0,111090.0,0.45183699]
[1757266704326,0.00938927,111100.0,111090.0,0.45183699]
[1757266705521,0.08228916,111100.0,111090.0,0.45183699]
[1757266714327,0.08228916,111100.0,111090.0,0.45167367]
[1757266715626,0.08228916,111100.0,111090.0,1.27011367]
[1757266716631,0.00049,111100.0,111090.0,1.86329252]
[1757266717031,0.00049,111100.0,111090.0,1.75012187]
[1757266717233,0.00049,111100.0,111090.0,1.66012187]
[1757266717532,0.00049,111100.0,111090.0,1.82208433]
[1757266718035,0.0094786,111100.0,111090.0,1.82308433]
[1757266718225,0.00049,111100.0,111090.0,1.82308433]
[1757266718425,0.00049,111100.0,111090.0,1.82108433]
[1757266718724,0.00049,111100.0,111090.0,1.82308433]
[1757266719334,0.00049,111100.0,111090.0,1.57308433]
[1757266722439,0.07116602,111110.0,111100.0,0.1249102]
[1757266722634,0.00049,111110.0,111100.0,0.83366253]
[1757266722936,0.00049,111110.0,111100.0,0.88246722]
[1757266724739,0.00049,111110.0,111100.0,0.88346722]
[1757266725137,0.00049,111110.0,111100.0,0.88446722]
[1757266725539,0.00049,111110.0,111100.0,1.29446722]
[1757266726334,0.00049,111110.0,111100.0,1.13446722]
[1757266726538,0.08217858,111120.0,111100.0,1.13446722]
[1757266726539,0.08217858,111120.0,111110.0,0.52196514]
[1757266726839,0.08217858,111120.0,111110.0,0.63514925]
[1757266728441,0.07308166,111120.0,111110.0,0.63514925]
[1757266728739,0.07308166,111120.0,111110.0,0.52196514]
[1757266728938,0.07408166,111120.0,111110.0,0.52196514]
[1757266729244,0.07408166,111120.0,111110.0,0.63515462]
[1757266729441,0.07408166,111120.0,111110.0,1.45327462]
[1757266730540,0.07408166,111120.0,111110.0,1.34008514]
[1757266730947,0.07408166,111120.0,111110.0,1.36008514]
[1757266731146,0.07408166,111120.0,111110.0,1.47327003]
[1757266731440,0.07408166,111120.0,111110.0,1.36008514]
[1757266731844,0.07408166,111120.0,111110.0,1.47327003]
[1757266732340,0.07408166,111120.0,111110.0,1.36008514]
[1757266733546,0.07408166,111120.0,111110.0,1.44089818]
[1757266734637,0.07408166,111120.0,111110.0,1.47327003]
[1757266736843,0.07408166,111120.0,111110.0,1.47311003]
[1757266737146,0.07408166,111120.0,111110.0,0.63515003]
[1757266737340,0.07408166,111120.0,111110.0,1.45311003]
[1757266738244,0.07408166,111120.0,111110.0,0.63515003]
[1757266738446,0.07408166,111120.0,111110.0,1.45307003]
[1757266738950,0.07408166,111120.0,111110.0,0.63515003]
[1757266739144,0.07408166,111120.0,111110.0,1.45307003]
[1757266740549,0.07408166,111120.0,111110.0,0.63515003]
[1757266740751,0.07408166,111120.0,111110.0,1.45303003]
[1757266741647,0.07408166,111120.0,111110.0,0.63515003]
[1757266741848,0.07408166,111120.0,111110.0,1.45303003]
[1757266743148,0.09594166,111120.0,111110.0,0.54515793]
[1757266743349,0.29447318,111120.0,111110.0,0.34662641]
[1757266743550,0.30812318,111120.0,111110.0,0.03491]
[1757266743750,0.10959166,111120.0,111110.0,0.3142699]
[1757266744452,0.10959166,111120.0,111110.0,0.23344152]
[1757266744847,0.10959166,111120.0,111110.0,0.34662641]
[1757266749057,0.09594166,111120.0,111110.0,0.34662641]
[1757266755061,0.09594166,111120.0,111110.0,0.14809489]
[1757266755263,0.09594166,111120.0,111110.0,0.34662641]
[1757266755458,0.29447318,111120.0,111110.0,0.34662641]